bitfinex/quotes_ETHUSD_20210701
["timestamp","ask_amount","ask_price","bid_price","bid_amount"]
[1625146373213,0.02221922,2139.1,2138.3,0.15]
[1625146373301,0.02221922,2139.1,2138.3,15.15]
[1625146373401,0.02221922,2139.1,2138.3,0.31]
[1625146373497,0.02221922,2139.1,2138.4,0.16]
[1625146373650,21.0333,2139.8,2138.2,1.05853055]
[1625146373651,0.19116111,2139.5,2138.2,1.05853055]
[1625146373852,0.19116111,2139.5,2138.5,3.8215]
[1625146373952,0.19116111,2139.5,2138.8,7.00752]
[1625146374077,0.19116111,2139.5,2138.6,0.16]
[1625146374375,0.19116111,2139.5,2138.5,13.16536]
[1625146376932,0.0061696,2139.4,2138.5,13.16536]
[1625146377235,0.0061696,2139.4,2138.5,65.51773774]
[1625146377585,0.0061696,2139.4,2138.5,56.17387774]
[1625146377887,0.0061696,2139.4,2138.5,56.02387774]
[1625146377986,4.8882696,2139.4,2138.5,56.02387774]
[1625146378438,11.8976796,2139.4,2138.5,56.02387774]
[1625146378788,0.06,2139.3,2138.5,53.25014596]
[1625146378887,0.06,2139.3,2138.5,0.89776822]
[1625146378987,0.06,2139.3,2138.2,0.00613055]
[1625146379691,0.06,2139.3,2138.5,0.0548276]
[1625146379788,4.8882696,2139.4,2138.5,0.0548276]
[1625146379989,6.8882696,2139.4,2138.5,0.0548276]
[1625146380190,7.01045,2139.0,2138.5,0.0548276]
[1625146381189,0.04,2138.9,2138.5,0.0548276]
[1625146381290,7.01221,2138.7,2138.5,0.0548276]
[1625146381633,7.01221,2138.7,2138.0,0.0620044]
[1625146381929,0.16,2138.6,2138.0,0.0620044]
[1625146382225,7.01221,2138.7,2138.0,0.0620044]
[1625146382775,18.03811,2138.7,2138.0,0.0620044]
[1625146382932,11.0259,2138.7,2138.0,0.0620044]
[1625146386536,11.0259,2138.7,2138.1,0.03396035]
[1625146388275,28.03692,2138.7,2138.1,0.03396035]
[1625146388373,7.0132487,2138.6,2138.1,0.03396035]
[1625146388516,7.1332487,2138.6,2138.1,0.03396035]
[1625146388668,0.08,2138.5,2138.1,0.03396035]
[1625146389117,0.08,2138.5,2136.6,11.68502]
[1625146389220,3.50716,2138.1,2136.6,11.68502]
[1625146389317,7.01422,2137.8,2136.6,11.68502]
[1625146390496,17.71668,2138.0,2136.9,7.01342]
[1625146393393,17.71668,2138.0,2137.0,7.0743802]
[1625146393794,17.71668,2138.0,2137.0,0.0612502]
[1625146394043,0.08,2137.9,2137.0,0.0612502]
[1625146394344,10.7034,2138.0,2137.0,0.0612502]
[1625146394447,7.01381,2137.8,2137.0,0.0612502]
[1625146394547,10.7034,2138.0,2137.0,0.0612502]
[1625146396149,17.71667,2138.0,2137.0,9.85737802]
[1625146396615,17.71667,2138.0,2137.0,10.00737802]
[1625146396719,0.12,2137.9,2137.0,10.00737802]
[1625146396816,4.4396,2137.9,2137.0,2.99424802]
[1625146397684,7.01388,2137.8,2137.0,2.99424802]
[1625146397833,0.2,2137.7,2137.0,0.0612502]
[1625146398128,0.18,2137.6,2137.0,0.0612502]
[1625146399187,7.19572,2137.6,2137.0,0.0612502]
[1625146399821,3.6582696,2137.5,2137.0,0.0612502]
[1625146400020,0.2,2137.4,2137.0,0.0612502]
[1625146400172,3.39,2137.4,2137.0,0.0612502]
[1625146400372,0.04,2137.3,2137.0,0.0612502]
[1625146400723,7.05647,2137.3,2137.0,0.0612502]
[1625146401425,7.05647,2137.3,2136.5,0.03979358]
[1625146401628,0.2,2137.2,2136.5,0.03979358]
[1625146402118,7.01783,2136.9,2136.5,0.03979358]
[1625146402216,10.58233,2136.9,2136.5,0.03979358]
[1625146402367,0.2,2136.8,2136.5,0.03979358]
[1625146403269,3.5645,2136.9,2136.5,0.03979358]
[1625146403968,7.07397,2136.9,2136.5,0.03979358]
[1625146404268,7.01889,2136.7,2136.5,0.03979358]
[1625146404463,0.16,2136.6,2136.5,0.03979358]
[1625146406387,7.01889,2136.7,2136.5,0.03979358]
[1625146408396,34.0886,2137.0,2136.5,0.03979358]
[1625146408637,21.2223,2137.0,2136.5,0.03979358]
[1625146408836,10.248,2137.0,2136.5,0.03979358]
[1625146411327,17.2646,2137.0,2136.5,0.03979358]
[1625146411746,0.12,2136.9,2136.5,0.03979358]
[1625146412248,10.248,2137.0,2136.5,0.03979358]
[1625146412653,10.2443,2137.2,2136.5,0.03979358]
[1625146412847,10.2443,2137.2,2136.6,0.15]
[1625146412948,9.9624,2137.3,2136.6,0.15]
[1625146413138,0.0612502,2137.5,2136.6,0.15]
[1625146413480,0.0612502,2137.5,2137.0,7.01337]
[1625146413628,0.0612502,2137.5,2137.1,0.15]
[1625146416155,7.0763502,2137.5,2137.1,0.15]
[1625146416355,0.1,2137.4,2137.1,0.15]
[1625146417254,0.0612502,2137.5,2137.1,0.15]
[1625146420255,7.0760702,2137.5,2137.1,0.15]
[1625146421210,7.0760702,2137.5,2136.4,43.53102203]
[1625146421308,3.6681189,2137.4,2136.4,43.53102203]
[1625146421404,3.6681189,2137.4,2136.4,0.15]
[1625146423174,7.01648,2137.0,2136.4,0.15]
[1625146423977,3.50832,2137.3,2136.4,0.15]
[1625146424423,3.5081189,2137.4,2136.5,7.05564358]
[1625146424523,0.0612502,2137.5,2136.5,7.05564358]
[1625146424624,0.0612502,2137.5,2136.6,0.15]
[1625146425223,0.0612502,2137.5,2136.7,0.08]
[1625146425321,0.0612502,2137.5,2136.8,0.15]
[1625146425425,0.0612502,2137.5,2137.1,7.01353]
[1625146425524,0.0612502,2137.5,2137.1,10.55933]
[1625146428976,10.41745655,2137.7,2137.1,10.55933]
[1625146429627,10.41745655,2137.7,2137.1,3.5458]
[1625146429832,0.16,2137.6,2136.5,0.03979358]
[1625146429979,0.16,2137.6,2137.0,0.0612502]
[1625146430282,3.5082904,2137.3,2137.0,0.0612502]
[1625146430379,10.5243804,2137.3,2137.0,0.0612502]
[1625146430478,3.5082904,2137.3,2137.0,0.0612502]
[1625146430578,7.0162904,2137.3,2137.0,0.0612502]
[1625146430727,0.2,2137.2,2137.0,0.0612502]
[1625146431366,10.5282904,2137.3,2137.0,0.0612502]
[1625146431468,7.0165,2137.2,2137.0,0.0612502]
[1625146433123,3.508,2137.3,2137.0,0.0612502]
[1625146433735,3.39103112,2137.3,2137.0,0.0612502]
[1625146434435,0.12,2137.2,2137.0,0.0612502]
[1625146434936,3.26103112,2137.3,2137.0,0.0612502]
[1625146435036,7.0156,2137.2,2137.0,0.0612502]
[1625146435235,0.06,2137.1,2137.0,0.0612502]
[1625146435485,3.26103112,2137.3,2137.0,0.0612502]
[1625146436323,7.01582,2137.2,2137.0,0.0612502]
[1625146436776,11.26312,2137.2,2136.5,0.03979358]
[1625146436928,3.50844,2137.1,2136.5,0.03979358]
[1625146437029,3.58844,2137.1,2136.5,0.03979358]
[1625146437334,7.01723,2136.8,2136.5,0.03979358]
[1625146437429,10.5267,2136.8,2136.5,0.03979358]
[1625146437626,11.5167,2136.8,2136.5,0.03979358]
[1625146437778,4.7012,2136.7,2136.5,0.03979358]
[1625146437981,0.1,2136.6,2136.5,0.03979358]
[1625146439236,32.55453,2136.7,2136.5,0.03979358]
[1625146440693,32.55453,2136.7,2135.6,7.01868]
[1625146440794,3.50936,2136.4,2135.6,7.01868]
[1625146442142,10.52822,2136.4,2135.6,7.01868]
[1625146443993,10.52822,2136.4,2135.7,7.01823]
[1625146444442,8.52822,2136.4,2135.7,7.01823]
[1625146445638,8.52822,2136.4,2135.8,7.01804]
[1625146446340,1.50936,2136.4,2135.8,7.01804]
[1625146446692,1.50936,2136.4,2135.9,7.01773]
[1625146446790,1.50936,2136.4,2135.5,9.53912262]
[1625146446934,20.8343,2136.7,2135.8,5.0468]
[1625146447038,20.8343,2136.7,2135.8,5.1968]
[1625146447184,20.8343,2136.7,2136.1,0.25]
[1625146447285,10.7092,2136.7,2136.1,0.25]
[1625146447433,10.7092,2136.7,2136.1,0.15]
[1625146447733,10.0617,2136.9,2136.1,0.15]
[1625146447988,10.0617,2136.9,2136.4,7.01589]
[1625146448137,0.03979358,2137.0,2136.4,10.83649]
[1625146448245,0.03979358,2137.0,2136.4,10.98649]
[1625146448588,0.03979358,2137.0,2136.5,0.08]
[1625146448885,0.03979358,2137.0,2136.6,0.15]
[1625146449671,0.03979358,2137.0,2136.6,7.1655]
[1625146449919,0.03979358,2137.0,2136.7,0.2]
[1625146450120,0.03979358,2137.0,2136.8,0.15]
[1625146450223,0.03979358,2137.0,2136.4,3.8206]
[1625146450317,0.03979358,2137.0,2136.7,0.15]
[1625146452441,6.95569358,2137.2,2136.7,0.15]
[1625146453493,10.5233,2137.4,2136.7,0.15]
[1625146453741,10.5233,2137.4,2136.8,0.08]
[1625146453946,3.50784,2137.4,2136.8,0.08]
[1625146454043,0.0612502,2137.5,2136.7,0.15]
[1625146455196,7.0761802,2137.5,2136.7,9.50212]
[1625146455942,10.5836502,2137.5,2136.7,9.50212]
[1625146456043,3.5687202,2137.5,2136.7,0.15]
[1625146456149,0.0612502,2137.5,2136.7,0.15]
[1625146456395,7.01556,2137.3,2136.7,0.15]
[1625146457901,3.50778,2137.1,2136.7,0.15]
[1625146458700,3.50778,2137.1,2136.8,3.4833]
[1625146458802,0.0612502,2137.5,2136.8,3.4833]
[1625146458954,0.0612502,2137.5,2137.1,7.01399]
[1625146459653,4.67685,2137.9,2137.1,7.01399]
[1625146459815,4.67559,2138.3,2137.2,0.23]
[1625146460052,41.639,2138.7,2137.2,0.23]
[1625146460053,41.639,2138.7,2137.6,7.01069]
[1625146460253,41.639,2138.7,2137.7,0.14]
[1625146460409,7.666e-05,2138.0,2137.7,2.7066466]
[1625146460502,7.666e-05,2138.0,2137.8,0.15]
[1625146460600,7.666e-05,2138.0,2137.8,4.4871]
[1625146460759,0.0548276,2139.0,2137.9,0.2]
[1625146460862,0.0548276,2139.0,2137.9,6.31031182]
[1625146460954,0.0548276,2139.0,2138.0,15.35]
[1625146461152,0.03823723,2139.0,2138.0,18.25488466]
[1625146461258,0.03823723,2139.0,2138.5,3.46]
[1625146461406,0.03823723,2139.0,2138.6,0.15]
[1625146471198,0.03823723,2139.0,2138.6,7.15839]
[1625146471500,0.03823723,2139.0,2138.7,0.06]
[1625146472642,0.03823723,2139.0,2138.6,0.15]
[1625146474096,0.03823723,2139.0,2138.2,11.9122666]
[1625146474097,4.03613723,2139.0,2138.2,11.9122666]
[1625146474198,4.03613723,2139.0,2138.3,0.15]
[1625146478669,4.03613723,2139.0,2138.4,0.06]
[1625146478868,4.03613723,2139.0,2138.5,0.15]
[1625146484478,3.93613723,2139.0,2138.5,0.15]
[1625146484575,1.1965,2139.1,2138.5,0.15]
[1625146484674,10.6111,2139.4,2138.5,0.15]
[1625146485347,10.6111,2139.4,2138.5,0.2048276]
[1625146485904,17.6202,2139.4,2138.5,7.2138876]
[1625146486254,7.0091,2139.4,2138.5,7.2138876]
[1625146486355,0.19116111,2139.5,2138.5,14.82567757]
[1625146486504,0.19116111,2139.5,2138.6,3.62]
[1625146486606,0.19116111,2139.5,2138.6,18.62]
[1625146486704,0.19116111,2139.5,2138.6,21.1866466]
[1625146486904,0.19116111,2139.5,2138.7,0.87213322]
[1625146487057,0.19116111,2139.5,2138.7,3.43423637]
[1625146487307,0.19116111,2139.5,2139.0,7.00659]
[1625146487514,0.19116111,2139.5,2139.1,0.15]
[1625146488165,0.19116111,2139.5,2139.2,0.04]
[1625146488363,0.19116111,2139.5,2139.3,0.15]
[1625146490054,0.00635805,2139.4,2139.3,0.15]
[1625146491200,0.00635805,2139.4,2139.3,7.15613]
[1625146491448,0.00635805,2139.4,2139.3,7.23613]
[1625146494354,0.00635805,2139.4,2139.3,0.23]
[1625146494455,0.00635805,2139.4,2139.3,0.15]
[1625146499896,0.14751916,2139.5,2139.3,0.15]
[1625146500001,0.14751916,2139.5,2139.0,0.52213322]
[1625146500399,3.50449,2139.4,2138.5,0.2048276]
[1625146500498,5.13159,2139.4,2138.5,0.2048276]
[1625146500751,8.63603,2139.4,2138.6,0.14]
[1625146500910,5.13159,2139.4,2138.6,0.14]
[1625146501011,1.6271,2139.4,2138.7,0.15]
[1625146501159,0.14751916,2139.5,2138.7,0.15]
[1625146501462,3.65176916,2139.5,2138.7,0.15]
[1625146501612,3.65176916,2139.5,2138.5,2.48373541]
[1625146501613,7.0185678,2139.2,2138.5,0.0548276]
[1625146501764,7.0185678,2139.2,2138.5,0.2048276]
[1625146501936,7.00943,2139.1,2138.5,0.2048276]
[1625146502038,7.0185678,2139.2,2138.5,0.2048276]
[1625146504160,7.00974,2139.0,2138.5,0.2048276]
[1625146504364,3.5051297,2138.9,2138.5,0.2048276]
[1625146504464,3.5051297,2138.9,2138.5,0.0548276]
[1625146504570,0.1,2138.8,2138.5,0.0548276]
[1625146505422,3.60597,2138.8,2138.5,0.0548276]
[1625146505520,7.01161,2138.7,2138.5,0.0548276]
[1625146505622,12.15021,2138.7,2138.5,0.0548276]
[1625146505823,12.15021,2138.7,2138.0,0.0620044]
[1625146505925,3.5065558,2138.5,2138.0,0.0620044]
[1625146506726,7.01322,2138.3,2138.0,0.0620044]
[1625146507024,0.06,2138.2,2138.0,0.0620044]
[1625146507123,5.1053,2138.2,2138.0,0.0620044]
[1625146507768,7.01344,2138.1,2138.0,0.0620044]
[1625146507921,5.0453,2138.2,2138.0,0.0620044]
[1625146509222,10.9468,2138.5,2138.0,0.0620044]
[1625146509319,10.2832,2138.7,2138.2,2.7733321]
[1625146509419,7.0113592,2138.9,2138.1,0.15]
[1625146510263,0.0548276,2139.0,2138.2,2.57668381]
[1625146510413,0.0548276,2139.0,2138.3,0.35]
[1625146510764,0.0548276,2139.0,2138.3,2.92668381]
[1625146511256,0.0548276,2139.0,2138.3,2.72668381]
[1625146512162,0.0548276,2139.0,2138.6,7.00802]
[1625146512262,0.0548276,2139.0,2138.6,10.95112]
[1625146512359,0.0548276,2139.0,2138.7,0.15]
[1625146514749,0.0548276,2139.0,2138.7,7.15765]
[1625146515053,0.14751916,2139.5,2138.7,7.15765]
[1625146515203,0.14751916,2139.5,2138.8,0.04]
[1625146515301,1.916e-05,2139.5,2138.8,0.04]
[1625146515404,1.916e-05,2139.5,2138.9,0.15]
[1625146515506,1.916e-05,2139.5,2138.9,5.38176745]
[1625146515603,1.916e-05,2139.5,2139.0,0.2]
[1625146515805,1.916e-05,2139.5,2139.1,0.15]
[1625146515902,1.916e-05,2139.5,2139.1,4.4854]
[1625146516004,1.916e-05,2139.5,2139.2,7.00567]
[1625146516251,1.916e-05,2139.5,2139.3,0.19]
[1625146516451,1.916e-05,2139.5,2139.4,0.08]
[1625146516654,1.916e-05,2139.5,2139.4,0.23]
[1625146516994,1.916e-05,2139.5,2139.4,0.15]
[1625146517620,1.916e-05,2139.5,2138.5,0.0548276]
[1625146517718,0.15001916,2139.5,2138.5,0.0548276]
[1625146517800,50.10309025,2139.5,2138.5,0.0548276]
[1625146517897,65.2220898,2139.5,2138.5,0.0548276]
[1625146518047,0.1,2139.4,2138.5,0.0548276]
[1625146518148,7.01123,2139.0,2138.5,0.0548276]
[1625146518247,7.011452,2138.8,2138.5,0.0548276]
[1625146518493,7.011452,2138.8,2138.5,0.08877882]
[1625146519257,7.01145,2138.7,2138.5,0.08877882]
[1625146520311,6.96145,2138.7,2138.5,0.08877882]
[1625146521206,6.91145,2138.7,2138.5,0.08877882]
[1625146521913,1.2511,2138.9,2138.5,0.08877882]
[1625146522013,3.505722,2138.8,2138.5,0.08877882]
[1625146522211,3.605722,2138.8,2138.5,0.08877882]
[1625146522959,7.111452,2138.8,2138.5,0.08877882]
[1625146523114,7.01145,2138.7,2138.5,0.08877882]
[1625146525345,7.01145,2138.7,2138.0,0.0620044]
[1625146525451,3.50601,2138.4,2138.0,0.0620044]
[1625146525548,5.21821,2138.4,2137.5,0.04787666]
[1625146525662,3.5067618,2138.1,2137.5,0.04787666]
[1625146525811,7.3036618,2138.1,2137.5,0.04787666]
[1625146526013,3.50687,2138.0,2137.5,0.04787666]
[1625146526108,5.21337,2138.0,2137.5,0.04787666]
[1625146526460,7.01367,2137.8,2137.5,0.04787666]
[1625146526709,5.21337,2138.0,2137.5,0.04787666]
[1625146526813,3.50687,2138.0,2137.5,0.04787666]
[1625146526964,3.7969,2138.1,2137.5,0.04787666]
[1625146527939,7.0125,2138.2,2137.5,0.04787666]
[1625146528087,10.2192,2138.3,2137.5,0.04787666]
[1625146528282,10.2192,2138.3,2137.5,0.19787666]
[1625146529436,10.2192,2138.3,2137.5,0.04787666]
[1625146529834,17.23119,2138.3,2137.5,0.04787666]
[1625146530765,0.1,2138.2,2137.5,0.04787666]
[1625146530866,4.6776,2138.2,2137.5,0.04787666]
[1625146530964,7.01393,2137.9,2137.5,0.04787666]
[1625146533874,6.96393,2137.9,2137.5,0.04787666]
[1625146535731,6.96393,2137.9,2137.5,2.54787666]
[1625146540172,5.96393,2137.9,2137.5,2.54787666]
[1625146540723,6.02393,2137.9,2137.5,2.54787666]
[1625146540975,5.96393,2137.9,2137.5,2.54787666]
[1625146543873,5.91393,2137.9,2137.5,2.54787666]
[1625146547490,9.42086,2137.9,2137.5,2.54787666]
[1625146547636,7.01379,2137.8,2137.5,2.54787666]
[1625146553926,7.01379,2137.8,2137.5,2.66481972]
[1625146556533,6.99727415,2137.8,2137.5,2.66481972]
[1625146558431,10.50426305,2137.8,2137.5,2.66481972]
[1625146558581,7.01398,2137.7,2137.5,2.66481972]
[1625146558934,17.70715898,2138.6,2137.5,2.66481972]
[1625146559036,10.0,2138.2,2137.5,2.66481972]
[1625146559282,0.06,2137.7,2137.5,2.66481972]
[1625146559427,10.0,2138.2,2137.5,2.66481972]
[1625146559680,9.3527,2137.8,2137.5,2.66481972]
[1625146560133,12.8596889,2137.8,2137.5,2.66481972]
[1625146560230,3.5069889,2137.8,2137.5,2.66481972]
[1625146560931,7.01396,2137.7,2137.5,2.66481972]
[1625146563072,3.5069889,2137.8,2137.5,2.66481972]
[1625146563322,7.01421,2137.7,2137.5,2.66481972]
[1625146563622,7.01421,2137.7,2137.5,2.76481972]
[1625146567987,7.01421,2137.7,2137.6,0.47931632]
[1625146570993,3.50693,2137.9,2137.6,0.47931632]
[1625146572190,10.52037,2137.9,2137.6,0.47931632]
[1625146573580,10.52037,2137.9,2137.6,0.95701432]
[1625146578198,3.50693,2137.9,2137.6,0.95701432]
[1625146578398,5.57433,2137.9,2137.6,0.95701432]
[1625146579101,9.0813096,2137.9,2137.6,0.95701432]
[1625146579201,7.01413,2137.8,2137.6,0.95701432]
[1625146579696,11.99943,2137.8,2137.6,0.95701432]
[1625146579892,0.1,2137.7,2137.6,1.432e-05]
[1625146580046,0.1,2137.7,2137.0,0.0612502]
[1625146580144,0.1,2137.7,2136.5,0.03979358]
[1625146580296,7.01633,2137.1,2136.5,0.03979358]
[1625146580396,3.5087066,2137.0,2136.5,0.03979358]
[1625146580543,3.6587066,2137.0,2136.5,0.03979358]
[1625146580795,5.6587066,2137.0,2136.5,0.03979358]
[1625146580945,3.50918,2136.9,2136.5,0.03979358]
[1625146581097,4.8218582,2136.8,2136.5,0.03979358]
[1625146581494,7.01821,2136.7,2136.5,0.03979358]
[1625146581959,7.01821,2136.7,2136.0,7.00759658]
[1625146581960,3.5094,2136.4,2136.0,7.00759658]
[1625146582056,6.9747,2136.4,2136.0,7.00759658]
[1625146582256,6.9747,2136.4,2136.0,0.05759658]
[1625146582509,4.24310982,2136.2,2136.0,0.05759658]
[1625146583507,6.24310982,2136.2,2136.0,0.05759658]
[1625146585256,6.24310982,2136.2,2136.0,0.09159371]
[1625146585357,4.24310982,2136.2,2136.0,0.09159371]
[1625146588354,4.24310982,2136.2,2135.5,0.03148262]
[1625146588509,20.0,2135.9,2134.9,6.95]
[1625146588770,10.0,2135.8,2134.9,6.95]
[1625146588772,3.46,2135.4,2134.5,0.1533385]
[1625146588864,0.1897538,2135.3,2134.5,0.1533385]
[1625146588957,3.7017493,2135.3,2134.5,0.1533385]
[1625146589060,3.7017493,2135.3,2134.5,0.02370824]
[1625146589061,9.8085493,2135.3,2134.5,0.02370824]
[1625146589149,9.9585493,2135.3,2134.5,0.02370824]
[1625146589245,0.1,2135.2,2134.5,0.02370824]
[1625146589463,13.512,2135.0,2134.0,0.0439185]
[1625146589609,7.02548,2134.5,2134.0,0.0439185]
[1625146589697,10.48858,2134.5,2134.0,0.0439185]
[1625146589792,0.1,2134.4,2134.0,0.0439185]
[1625146590098,3.6131,2134.5,2134.0,0.0439185]
[1625146590845,3.51279,2134.4,2134.0,0.0439185]
[1625146591199,7.02573,2134.2,2134.0,0.0439185]
[1625146594079,7.02573,2134.2,2133.8,0.01]
[1625146594279,0.25,2134.1,2133.8,0.01]
[1625146595223,7.02779,2134.0,2133.8,0.01]
[1625146595444,12.00149,2134.0,2133.8,0.01]
[1625146595543,12.15149,2134.0,2133.8,0.01]
[1625146595647,12.00149,2134.0,2133.8,0.01]
[1625146595847,4.9737,2134.0,2133.8,0.01]
[1625146596243,0.15,2133.9,2133.8,0.01]
[1625146596444,0.19,2133.9,2133.8,0.01]
[1625146597849,11.30426552,2134.0,2133.8,0.01]
[1625146597948,0.15,2133.9,2133.8,0.01]
[1625146598196,0.19,2133.9,2133.8,0.01]
[1625146598547,0.15,2133.9,2133.8,0.01]
[1625146600503,4.27647552,2134.0,2133.8,0.01]
[1625146600654,9.37044,2134.1,2133.8,0.01]
[1625146601555,7.02779,2134.0,2133.8,0.01]
[1625146603093,11.26099,2134.0,2133.8,0.01]
[1625146618467,14.7746163,2134.0,2133.8,0.01]
[1625146619516,7.02594,2133.9,2133.8,0.01]
[1625146622641,12.88409,2134.1,2133.8,0.01]
[1625146622642,3.51365,2134.1,2133.8,0.01]
[1625146622737,3.51365,2134.1,2133.8,4.9113]
[1625146622840,10.6294,2134.2,2133.8,4.9113]
[1625146623088,11.0096,2134.3,2133.9,0.08]
[1625146623290,11.0096,2134.3,2133.8,4.9113]
[1625146624191,7.02436,2134.2,2133.8,4.9113]
[1625146624541,10.5372,2134.2,2133.8,4.9113]
[1625146624716,3.51284,2134.2,2133.8,0.01]
[1625146625307,7.02608,2134.0,2133.8,0.01]
[1625146625408,10.20128,2134.0,2133.8,0.01]
[1625146630764,10.20128,2134.0,2133.5,0.01699412]
[1625146630765,10.20128,2134.0,2133.0,0.01260812]
[1625146630914,10.20128,2134.0,2133.2,0.15]
[1625146631261,10.21827412,2134.0,2133.2,0.15]
[1625146631572,3.51328,2133.9,2133.2,0.15]
[1625146631773,5.57619412,2134.0,2133.0,0.04664584]
[1625146632225,9.08986412,2134.0,2133.0,0.04664584]
[1625146632829,5.57619412,2134.0,2133.0,0.04664584]
[1625146632929,7.02743,2133.5,2133.0,0.04664584]
[1625146633029,3.5828,2133.5,2133.0,0.04664584]
[1625146633328,0.80382736,2133.5,2133.0,0.04664584]
[1625146634260,7.83135736,2133.5,2133.0,0.04664584]
[1625146634966,0.06,2133.4,2133.0,0.04664584]
[1625146635410,2.0,2133.3,2133.0,0.04664584]
[1625146636256,0.04,2133.2,2133.0,0.04664584]
[1625146636457,2.04,2133.2,2133.0,0.04664584]
[1625146636604,0.06,2133.1,2133.0,0.04664584]
[1625146636705,0.06,2133.1,2133.0,4.584e-05]
[1625146637495,2.06,2133.1,2133.0,4.584e-05]
[1625146637851,33.7883,2133.1,2133.0,4.584e-05]
[1625146637953,36.57164103,2133.1,2133.0,4.584e-05]
[1625146638050,51.57164103,2133.1,2133.0,4.584e-05]
[1625146638392,31.57164103,2133.1,2133.0,4.584e-05]
[1625146638589,51.57164103,2133.1,2133.0,4.584e-05]
[1625146638938,54.08687848,2133.1,2133.0,4.584e-05]
[1625146640191,65.80955848,2133.1,2133.0,4.584e-05]
[1625146640831,0.21428544,2133.0,2131.1,0.02224979]
[1625146640933,7.0335963,2132.4,2131.1,0.02224979]
[1625146641034,24.5478963,2132.4,2131.1,0.02224979]
[1625146641186,48.0646963,2132.4,2131.1,0.02224979]
[1625146641282,7.03406,2132.0,2131.1,0.02224979]
[1625146642635,3.51737,2131.9,2131.1,0.02224979]
[1625146642759,8.33537,2131.9,2131.1,0.02224979]
[1625146643166,0.15,2131.8,2131.1,0.02224979]
[1625146643257,0.19,2131.8,2131.1,0.02224979]
[1625146643810,7.03521,2131.7,2131.1,0.02224979]
[1625146644212,2.86342596,2131.7,2131.1,0.02224979]
[1625146647543,2.8412924,2131.7,2131.1,0.02224979]
[1625146648347,2.8412924,2131.7,2130.3,0.15]
[1625146648454,2.8412924,2131.7,2131.1,0.02224029]
[1625146648455,36.85712,2131.4,2131.1,0.02224029]
[1625146648551,49.07571077,2131.4,2131.1,0.02224029]
[1625146648651,0.1634107,2131.3,2131.1,0.02224029]
[1625146648753,3.46,2131.2,2131.1,0.02224029]
[1625146648898,13.52,2131.2,2129.2,1.70965916]
[1625146649001,0.19542455,2130.7,2130.2,0.02224487]
[1625146649150,3.70696436,2130.7,2130.2,0.02224487]
[1625146649512,3.72336574,2130.7,2130.2,0.02224487]
[1625146649855,3.5991,2130.7,2130.2,0.02224487]
[1625146649953,3.70765155,2130.7,2130.2,0.02224487]
[1625146650052,3.70765155,2130.7,2130.0,0.01]
[1625146650208,0.1564118,2130.3,2129.3,0.1]
[1625146650604,0.1564118,2130.3,2129.4,0.14]
[1625146650854,0.1564118,2130.3,2129.4,1.06711125]
[1625146650955,0.1564118,2130.3,2129.4,0.14]
[1625146651104,0.1564118,2130.3,2129.4,2.43105071]
[1625146651553,0.1564118,2130.3,2129.4,2.29105071]
[1625146651776,0.1564118,2130.3,2128.9,1.90563469]
[1625146651778,7.1956618,2130.3,2128.9,1.90563469]
[1625146651784,7.1956618,2130.3,2128.8,0.02224489]
[1625146651785,7.1956618,2130.3,2129.0,0.15]
[1625146651863,7.1956618,2130.3,2128.8,0.02224489]
[1625146651970,0.15,2130.2,2128.8,0.02224489]
[1625146652069,0.24006843,2130.1,2128.8,0.02224489]
[1625146652173,0.24006843,2130.1,2129.0,2.29105071]
[1625146652458,0.10121494,2130.2,2129.1,0.12]
[1625146652699,0.16207997,2130.4,2129.1,0.12]
[1625146652795,0.16207997,2130.4,2129.2,2.30780071]
[1625146652899,7.03944,2130.3,2129.2,2.30780071]
[1625146652999,0.1344762,2130.4,2129.2,2.30780071]
[1625146653144,0.1344762,2130.4,2129.0,0.15]
[1625146653699,4.5315762,2130.4,2129.0,0.15]
[1625146654197,7.04013,2130.1,2129.0,0.15]
[1625146654352,7.04013,2130.1,2128.8,6.97224489]
[1625146654453,0.10118578,2130.0,2128.8,6.97224489]
[1625146654602,0.31996596,2130.0,2128.8,6.97224489]
[1625146654697,0.15,2130.0,2128.8,6.97224489]
[1625146655600,4.68325159,2129.9,2128.8,6.97224489]
[1625146655701,10.35762,2129.4,2128.8,6.97224489]
[1625146656598,0.15,2129.3,2128.8,6.97224489]
[1625146656743,7.0439,2129.1,2128.8,6.97224489]
[1625146656942,7.0439,2129.1,2128.8,4.489e-05]
[1625146657046,7.0439,2129.1,2127.9,1.8621643]
[1625146657294,0.18147675,2128.9,2127.9,1.8621643]
[1625146657447,3.57498745,2128.9,2127.9,1.8621643]
[1625146657548,0.15,2128.8,2127.9,1.8621643]
[1625146657650,47.17603125,2128.8,2127.9,1.8621643]
[1625146657745,0.18833169,2128.7,2127.9,1.8621643]
[1625146658002,7.04665,2128.4,2127.9,1.8621643]
[1625146658146,11.58825,2128.4,2127.9,1.8621643]
[1625146658248,11.73825,2128.4,2127.9,1.8621643]
[1625146659295,4.6916,2128.4,2127.9,1.8621643]
[1625146659393,4.5416,2128.4,2127.9,1.8621643]
[1625146659597,0.15,2128.7,2127.9,1.8621643]
[1625146659695,0.11861674,2128.9,2127.9,1.8621643]
[1625146659794,0.15,2128.8,2127.9,1.8621643]
[1625146659894,0.11861674,2128.9,2127.9,4.16996501]
[1625146660043,10.36835381,2129.0,2128.0,0.16]
[1625146660141,10.36835381,2129.0,2127.9,4.31996501]
[1625146660296,17.41386381,2129.0,2127.9,4.16996501]
[1625146660394,17.56386381,2129.0,2127.9,1.8621643]
[1625146660497,37.56386381,2129.0,2127.9,1.8621643]
[1625146660596,10.0,2128.9,2127.5,0.00974912]
[1625146660695,46.82457109,2128.8,2127.5,0.00974912]
[1625146660817,141.0377714,2128.8,2127.5,0.00974912]
[1625146661219,20.0,2128.1,2127.5,0.00974912]
[1625146661323,23.9337,2128.1,2127.5,0.00974912]
[1625146661427,7.04928,2127.8,2127.5,0.00974912]
[1625146661524,27.04928,2127.8,2127.5,0.00974912]
[1625146661621,0.15,2127.7,2127.5,0.00974912]